fUST/lending_fUST_20250325
["ID","MTS","AMOUNT","RATE_DAILY","PERIOD"]
[356649648,1742910633770,-2886.54,0.00012899,2]
[356649649,1742910633780,-500.0,0.00012899,2]
[356649650,1742910633790,-500.0,0.00012899,2]
[356649651,1742910633800,-1027.99,0.00012899,2]
[356649652,1742910633811,-500.0,0.00012899,2]
[356649653,1742910633821,-500.0,0.00012899,2]
[356649654,1742910633831,-599.57,0.00012899,2]
[356649655,1742910633841,-500.0,0.00012899,2]
[356649656,1742910633852,-500.0,0.00012899,2]
[356649657,1742910633862,-500.0,0.00012899,2]
[356649658,1742910633873,-500.0,0.00012899,2]
[356649659,1742910633882,-7123.37,0.00012899,2]
[356649660,1742910633892,-500.0,0.00012899,2]
[356649661,1742910633902,-500.0,0.00012899,2]
[356649662,1742910633912,-1235.55,0.00012899,2]
[356649663,1742910633922,-575.09,0.00012899,2]
[356649664,1742910633932,-1152.24,0.00012899,2]
[356649665,1742910633947,-500.0,0.00012899,2]
[356649666,1742910633957,-500.0,0.00012899,2]
[356649667,1742910633967,-500.0,0.00012899,2]
[356649668,1742910633978,-532.8,0.00012899,2]
[356649669,1742910633988,-1691.81,0.00012899,2]
[356649670,1742910633998,-2080.25,0.00012899,2]
[356649671,1742910634009,-500.0,0.00012899,2]
[356649672,1742910634019,-1194.79,0.00012899,2]
[356649673,1742910634029,-2141.36,0.00012899,2]
[356649674,1742910634039,-8529.04,0.00012899,2]
[356649675,1742910634049,-500.0,0.00012899,2]
[356649676,1742910634059,-3700.65,0.00012899,2]
[356649677,1742910634069,-500.0,0.00012899,2]
[356649678,1742910634078,-2222.34,0.00012899,2]
[356649679,1742910634088,-500.0,0.00012899,2]
[356649680,1742910634097,-500.0,0.00012899,2]
[356649681,1742910634107,-590.18,0.00012899,2]
[356649682,1742910634117,-500.0,0.00012899,2]
[356649683,1742910634127,-500.0,0.00012899,2]
[356649684,1742910634137,-500.0,0.00012899,2]
[356649685,1742910634146,-500.0,0.00012899,2]
[356649686,1742910634157,-1083.19,0.00012899,2]
[356649687,1742910634167,-500.0,0.00012899,2]
[356649688,1742910634178,-2790.4,0.00012899,2]
[356649689,1742910634188,-500.0,0.00012899,2]
[356649690,1742910634198,-500.0,0.00012899,2]
[356649691,1742910634208,-26196.96630191,0.00012899,2]
[356649692,1742910634223,-1754.669697,0.00012899,2]
[356649693,1742910634415,-100000.0,0.00012899,2]
[356649713,1742910638023,-2245.54,0.00012871,2]
[356649714,1742910638033,-500.0,0.00012872,2]
[356649716,1742910638042,-500.0,0.00012872,2]
[356649718,1742910638052,-5222.54400109,0.00012899,2]
[356649719,1742910638063,-500.0,0.00012899,2]
[356649721,1742910638073,-3944.23,0.00012899,2]
[356649723,1742910638083,-500.0,0.00012899,2]
[356649724,1742910638093,-1651.27,0.00012899,2]
[356649726,1742910638103,-500.0,0.00012899,2]
[356649728,1742910638113,-1159.92,0.00012899,2]
[356649729,1742910638123,-191009.03926596,0.000129,2]
[356649732,1742910638136,-7012.81,0.000129,2]
[356649733,1742910638148,-530.67,0.000129,2]
[356649798,1742910644278,-500.0,0.00012871,2]
[356649799,1742910644288,-500.0,0.00012871,2]
[356649800,1742910644298,-500.0,0.00012872,2]
[356649801,1742910644308,-811.03,0.00012899,2]
[356649802,1742910644317,-893.51206923,0.00012899,2]
[356649833,1742910646220,-500.0,0.00012872,2]
[356649835,1742910646230,-496.53793077,0.00012899,2]
[356649836,1742910646240,-500.0,0.00012899,2]
[356649837,1742910646250,-17341.50350006,0.000129,2]
[356649843,1742910738483,604.94,0.00010959,2]
[356649850,1742911441559,209.909999,0.00015,120]
[356649851,1742911469236,179.669394,0.00010959,2]
[356649852,1742911505559,1131.396815,0.00011787,2]
[356649920,1742911838322,-3274.67,0.00012251,2]
[356649943,1742911840641,-628.81589598,0.00012251,2]
[356649978,1742911856134,6392.4737342,0.00011785,2]
[356649979,1742911856820,1104.56221918,0.0001202,2]
[356649980,1742911871797,429.39,0.00010959,2]
[356649981,1742911882317,162.65,0.00010959,2]
[356649982,1742911892839,813.26,0.00010959,2]
[356649983,1742912476352,166.676089,0.00010959,2]
[356649984,1742912583519,152.22021774,0.00012,2]
[356649985,1742912612613,150.0,0.00011913,2]
[356649991,1742912851499,7977.3154491,0.00011695,2]
[356650032,1742913032958,-1963.51672091,0.000125,2]
[356650034,1742913032974,-545.13930362,0.000125,2]
[356650035,1742913032984,-500.0,0.00012673,2]
[356650036,1742913032994,-230.20357616,0.00012673,2]
[356650037,1742913033004,-500.0,0.00012673,2]
[356650038,1742913033013,-500.0,0.00012673,2]
[356650039,1742913033023,-580.15705442,0.00012673,2]
[356650040,1742913033033,-268.14948688,0.00012673,2]
[356650041,1742913033043,-364.29204742,0.00012673,2]
[356650042,1742913033053,-500.0,0.00012673,2]
[356650043,1742913033062,-500.0,0.00012673,2]
[356650044,1742913033072,-500.0,0.00012673,2]
[356650045,1742913033082,-500.0,0.00012673,2]
[356650046,1742913033092,-502.60612676,0.00012673,2]
[356650047,1742913033104,-500.0,0.00012673,2]
[356650048,1742913033114,-502.37419339,0.00012673,2]
[356650049,1742913033124,-465.5464818,0.00012673,2]
[356650050,1742913033135,-500.47915512,0.00012673,2]
[356650051,1742913033145,-500.0,0.00012673,2]
[356650052,1742913033155,-502.66508552,0.00012673,2]
[356650053,1742913033165,-502.85385566,0.00012673,2]
[356650054,1742913033175,-500.0,0.00012673,2]
[356650055,1742913033185,-500.0,0.00012673,2]
[356650056,1742913033195,-500.0,0.00012673,2]
[356650057,1742913033205,-151.0,0.00012689,2]
[356650058,1742913033215,-600.0,0.00012689,2]
[356650059,1742913033225,-300.0,0.00012692,2]
[356650060,1742913033235,-500.0,0.00012692,2]
[356650061,1742913033245,-252.93794549,0.00012692,2]
[356650062,1742913033256,-518.69,0.00012693,2]
[356650063,1742913033266,-15086.53,0.00012693,2]
[356650064,1742913033276,-1393.0,0.00012693,2]
[356650065,1742913033286,-4745.59,0.00012693,2]
[356650066,1742913033295,-12745.44,0.00012693,2]
[356650067,1742913033305,-1471.69,0.00012693,2]
[356650068,1742913033314,-500.0,0.00012693,2]
[356650069,1742913033325,-500.0,0.00012693,2]
[356650070,1742913033335,-1466.2,0.00012693,2]
[356650071,1742913033345,-500.0,0.00012693,2]
[356650072,1742913033356,-635.27,0.00012693,2]
[356650073,1742913033367,-500.0,0.00012693,2]
[356650074,1742913033377,-2151.98,0.00012693,2]
[356650075,1742913033387,-691.76,0.00012693,2]
[356650076,1742913033397,-5000.0,0.00012694,2]
[356650077,1742913033407,-500.0,0.00012694,2]
[356650078,1742913033416,-6208.62,0.00012694,2]
[356650079,1742913033426,-500.0,0.00012694,2]
[356650080,1742913033435,-500.0,0.00012694,2]
[356650081,1742913033445,-500.0,0.00012694,2]
[356650082,1742913033454,-3367.25,0.00012694,2]
[356650083,1742913033464,-4530.39,0.00012694,2]
[356650084,1742913033474,-500.0,0.00012694,2]
[356650085,1742913033483,-500.0,0.00012694,2]
[356650086,1742913033492,-1496.18,0.00012694,2]
[356650087,1742913033502,-500.0,0.00012694,2]
[356650088,1742913033511,-500.0,0.00012694,2]
[356650089,1742913033521,-1663.63,0.00012694,2]
[356650090,1742913033531,-500.0,0.00012694,2]
[356650091,1742913033540,-500.0,0.00012694,2]
[356650092,1742913033549,-1377.4,0.00012694,2]
[356650093,1742913033558,-500.0,0.00012694,2]
[356650094,1742913033568,-698.37,0.00012694,2]
[356650095,1742913033578,-576.31,0.00012694,2]
[356650096,1742913033588,-3049.77007633,0.00012694,2]
[356650097,1742913033899,-936.71346659,0.00012694,2]
[356650120,1742913038364,-500.0,0.00012692,2]
[356650121,1742913038449,-500.0,0.00012692,2]
[356650122,1742913038460,-500.0,0.00012692,2]
[356650123,1742913038470,-251.56701337,0.00012692,2]
[356650124,1742913038479,-500.0,0.00012692,2]
[356650125,1742913038489,-500.0,0.00012693,2]
[356650126,1742913038499,-2054.32815731,0.00012694,2]
[356650145,1742913040846,-500.0,0.00012693,2]
[356650146,1742913040857,-1766.46253629,0.00012694,2]
[356650152,1742913043531,-3497.09576348,0.00012694,2]
[356650153,1742913043541,-500.0,0.00012694,2]
[356650154,1742913043551,-500.0,0.00012694,2]
[356650155,1742913043561,-530.03,0.00012694,2]
[356650156,1742913043571,-500.0,0.00012694,2]
[356650157,1742913043581,-1664.02,0.00012694,2]
[356650158,1742913043591,-2412.33211159,0.00012694,2]
[356650159,1742913043637,-430.41230986,0.00012694,2]
[356650160,1742913043648,-737.45261921,0.00012694,2]
[356650203,1742913046607,-500.0,0.00012693,2]
[356650205,1742913046618,-500.0,0.00012693,2]
[356650207,1742913046628,-139.15295934,0.00012694,2]
[356650209,1742913046637,-903.23653012,0.00012694,2]
[356650218,1742913046706,-2434.80346988,0.00012694,2]
[356650220,1742913046715,-500.0,0.00012694,2]
[356650222,1742913046725,-659.71,0.00012694,2]
[356650224,1742913046735,-1449.28,0.00012694,2]
[356650225,1742913046744,-500.0,0.00012695,2]
[356650226,1742913046754,-500.0,0.00012695,2]
[356650228,1742913046763,-500.0,0.00012695,2]
[356650230,1742913046777,-500.0,0.00012695,2]
[356650231,1742913046787,-500.0,0.00012695,2]
[356650232,1742913046796,-500.0,0.00012695,2]
[356650233,1742913046806,-500.0,0.00012695,2]
[356650234,1742913046815,-500.0,0.00012695,2]
[356650235,1742913046825,-500.0,0.00012695,2]
[356650236,1742913046834,-500.0,0.00012695,2]
[356650237,1742913046844,-575.65705124,0.00012695,2]
[356650238,1742913046853,-500.0,0.00012695,2]
[356650239,1742913046864,-500.0,0.00012695,2]
[356650240,1742913046874,-500.0,0.00012695,2]
[356650241,1742913046884,-500.0,0.00012695,2]
[356650242,1742913046893,-950.34,0.00012695,2]
[356650243,1742913046903,-500.0,0.00012695,2]
[356650244,1742913046912,-500.0,0.00012695,2]
[356650245,1742913046921,-500.0,0.00012695,2]
[356650246,1742913046930,-500.0,0.00012695,2]
[356650247,1742913046940,-500.0,0.00012695,2]
[356650248,1742913046949,-500.0,0.00012695,2]
[356650249,1742913046959,-255.10810923,0.00012695,2]
[356650250,1742913046981,-244.89189077,0.00012695,2]
[356650251,1742913046990,-331.20142515,0.00012695,2]
[356650257,1742913526890,157.809135,0.00010959,2]
[356650260,1742914065143,191.00000001,0.000125,2]
[356650336,1742914232833,-151.0,0.00012586,2]
[356650338,1742914232842,-425.52991494,0.00012586,2]
[356650339,1742914232854,-174.47008506,0.00012586,2]
[356650341,1742914232864,-300.0,0.0001259,2]
[356650342,1742914232873,-408.82262381,0.00012591,2]
[356650344,1742914232885,-91.17737619,0.00012591,2]
[356650345,1742914232895,-527.05656184,0.00012591,2]
[356650346,1742914232905,-480.80717843,0.00012591,2]
[356650488,1742914241333,-500.0,0.0001259,2]
[356650489,1742914241342,-500.0,0.0001259,2]
[356650490,1742914241352,-500.0,0.0001259,2]
[356650491,1742914241362,-177.44293684,0.0001259,2]
[356650492,1742914241372,-13977.11282157,0.00012591,2]
[356650493,1742914241381,-4547.85,0.00012591,2]
[356650494,1742914241391,-1334.96,0.00012591,2]
[356650495,1742914241400,-1410.37,0.00012591,2]
[356650496,1742914241410,-12214.38,0.00012591,2]
[356650497,1742914241419,-500.0,0.00012591,2]
[356650498,1742914241429,-500.0,0.00012591,2]
[356650499,1742914241438,-1372.82318297,0.00012591,2]
[356650529,1742914243766,-418.39513469,0.00012591,2]
[356650530,1742914243891,-271.09168234,0.00012591,2]
[356650531,1742914243900,-231.67665977,0.00012591,2]
[356650542,1742914246642,-1173.43334023,0.00012591,2]
[356650544,1742914246652,-500.0,0.00012591,2]
[356650546,1742914246661,-608.8,0.00012591,2]
[356650548,1742914246671,-500.0,0.00012591,2]
[356650550,1742914246680,-662.94,0.00012591,2]
[356650553,1742914246690,-500.0,0.00012591,2]
[356650554,1742914246699,-6219.88,0.00012591,2]
[356650557,1742914246710,-500.0,0.00012591,2]
[356650559,1742914246720,-500.0,0.00012592,2]
[356650560,1742914246729,-500.0,0.00012592,2]
[356650562,1742914246738,-500.0,0.00012592,2]
[356650564,1742914246748,-500.0,0.00012592,2]
[356650567,1742914246758,-620.72602282,0.00012592,2]
[356650568,1742914246768,-500.0,0.00012592,2]
[356650570,1742914246777,-500.0,0.00012592,2]
[356650572,1742914246787,-500.0,0.00012592,2]
[356650574,1742914246796,-500.0,0.00012592,2]
[356650576,1742914246806,-32.13829106,0.00012592,2]
[356650578,1742914246819,-467.86170894,0.00012592,2]
[356650580,1742914246828,-500.0,0.00012592,2]
[356650583,1742914246838,-1747.93,0.00012592,2]
[356650584,1742914246847,-1266.3,0.00012592,2]
[356650587,1742914246857,-242.32829117,0.00012592,2]
[356650591,1742914246882,-1191.51170883,0.00012592,2]
[356650593,1742914246892,-500.0,0.00012592,2]
[356650595,1742914246901,-500.0,0.00012592,2]
[356650597,1742914246911,-500.0,0.00012592,2]
[356650599,1742914246921,-500.0,0.00012592,2]
[356650601,1742914246930,-500.0,0.00012592,2]
[356650603,1742914246939,-500.0,0.00012592,2]
[356650605,1742914246948,-380.35324478,0.00012592,2]
[356650940,1742914292568,392.01913784,0.00012493,2]
[356650944,1742914559784,151.2273905,0.00012491,2]
[356650945,1742914561692,151.22739049,0.00012492,2]
[356650946,1742914563678,151.22739049,0.00012492,2]
[356650947,1742914665499,175.71684022,0.00012,2]
[356650948,1742914694489,3787.58185045,0.00012491,2]
[356650949,1742914694525,1051.50864275,0.00012491,2]
[356650950,1742914697469,2366.52357254,0.0001249,2]
[356650951,1742914703932,182.383914,0.00010959,2]
[356650952,1742914732694,505.3324275,0.000124,2]
[356650953,1742914814549,466.64245401,0.0001231,2]
[356650954,1742914828604,427.6089892,0.000125,2]
[356650958,1742915388577,3628.95546993,0.0001202,2]
[356651039,1742915433110,-151.0,0.00012483,2]
[356651040,1742915433121,-519.56998,0.00012483,2]
[356651070,1742915437736,-80.43002,0.00012483,2]
[356651071,1742915437746,-227.44894191,0.00012488,2]
[356651072,1742915437756,-300.0,0.00012489,2]
[356651074,1742915437765,-500.0,0.00012489,2]
[356651076,1742915437775,-522.88403412,0.00012489,2]
[356651078,1742915437784,-196.24933733,0.00012489,2]
[356651080,1742915437795,-500.0,0.00012489,2]
[356651097,1742915437957,-207.74114186,0.00012489,2]
[356651098,1742915437970,-292.25885814,0.00012489,2]
[356651099,1742915437981,-500.0,0.00012489,2]
[356651100,1742915437991,-500.0,0.00012489,2]
[356651101,1742915438002,-500.0,0.00012489,2]
[356651102,1742915438013,-500.0,0.00012489,2]
[356651103,1742915438022,-500.0,0.00012489,2]
[356651104,1742915438032,-368.93959329,0.0001249,2]
[356651105,1742915438045,-500.0,0.0001249,2]
[356651106,1742915438055,-4753.64436832,0.0001249,2]
[356651107,1742915438067,-3205.41300548,0.0001249,2]
[356651108,1742915438084,-1409.753509,0.0001249,2]
[356651180,1742915445885,-350.20199531,0.00012489,2]
[356651186,1742915445940,-153.92651269,0.00012489,2]
[356651188,1742915445950,-4486.6991172,0.0001249,2]
[356651190,1742915445961,-1279.33,0.0001249,2]
[356651192,1742915445971,-4358.36,0.0001249,2]
[356651194,1742915445980,-1351.6,0.0001249,2]
[356651196,1742915445990,-3334.50570432,0.0001249,2]
[356651199,1742915446005,-2035.8408346,0.0001249,2]
[356651301,1742915793488,167.179157,0.00010959,2]
[356651302,1742915833034,250.0,0.00012,2]
[356651313,1742916498641,419.37986651,0.0001,2]
[356651314,1742916513370,3547.80951398,9e-05,2]
[356651315,1742916520361,1175.04955639,0.0001,2]
[356651390,1742916638428,-3389.80497274,0.00012262,2]
[356651391,1742916638443,-1035.83682726,0.00012262,2]
[356651392,1742916638452,-109.51820574,0.00012373,2]
[356651393,1742916638472,-392.2537544,0.00012373,2]
[356651394,1742916638481,-156.41787969,0.00012373,2]
[356651395,1742916638491,-503.97436619,0.00012373,2]
[356651396,1742916638501,-500.0,0.00012373,2]
[356651397,1742916638510,-500.0,0.00012373,2]
[356651398,1742916638520,-500.54745208,0.00012373,2]
[356651399,1742916638529,-503.18780296,0.00012373,2]
[356651400,1742916638539,-500.0,0.00012373,2]
[356651401,1742916638548,-270.5285588,0.00012373,2]
[356651402,1742916638559,-300.0,0.00012386,2]
[356651403,1742916638568,-258.25771531,0.00012387,2]
[356651404,1742916638579,-500.0,0.00012387,2]
[356651405,1742916638588,-3683.72512267,0.00012387,2]
[356651416,1742916643337,-500.0,0.00012386,2]
[356651417,1742916643349,-304.05606856,0.00012386,2]
[356651418,1742916643361,-310.5075176,0.00012386,2]
[356651419,1742916643372,-9594.46487733,0.00012387,2]
[356651420,1742916643382,-4176.76,0.00012387,2]
[356651421,1742916643391,-1226.03,0.00012387,2]
[356651422,1742916643401,-1295.28,0.00012387,2]
[356651424,1742916643410,-11481.68,0.00012387,2]
[356651426,1742916643420,-500.0,0.00012387,2]
[356651428,1742916643430,-500.0,0.00012387,2]
[356651430,1742916643440,-500.0,0.00012387,2]
[356651432,1742916643450,-583.43,0.00012387,2]
[356651434,1742916643460,-500.0,0.00012387,2]
[356651435,1742916643470,-1512.05,0.00012387,2]
[356651436,1742916643480,-543.29,0.00012387,2]
[356651437,1742916643490,-504.5417091,0.00012387,2]
[356651438,1742916643500,-1976.38,0.00012387,2]
[356651439,1742916643509,-500.0,0.00012387,2]
[356651440,1742916643519,-500.0,0.00012387,2]
[356651441,1742916643528,-235.20029766,0.00012387,2]
[356651442,1742916643538,-500.0,0.00012387,2]
[356651443,1742916643548,-500.0,0.00012387,2]
[356651444,1742916643557,-500.0,0.00012387,2]
[356651445,1742916643567,-500.0,0.00012387,2]
[356651446,1742916643577,-635.32,0.00012387,2]
[356651447,1742916643586,-56451.49396968,0.00012388,2]
[356651448,1742916643598,-4489.85086324,0.00012388,2]
[356651450,1742916643710,-261058.65516708,0.00012388,2]
[356651452,1742916643720,-5000.0,0.00012389,2]
[356651453,1742916643730,-248.9999981,0.0001245,2]
[356651454,1742916643739,-500.0,0.00012473,2]
[356651455,1742916643749,-500.0,0.00012473,2]
[356651456,1742916643758,-252.78065576,0.00012473,2]
[356651458,1742916643767,-500.0,0.00012473,2]
[356651459,1742916643777,-500.0,0.00012473,2]
[356651460,1742916643787,-500.0,0.00012473,2]
[356651461,1742916643796,-500.0,0.00012473,2]
[356651462,1742916643807,-209.16619909,0.00012473,2]
[356651463,1742916643819,-500.0,0.00012473,2]
[356651464,1742916643828,-500.0,0.00012473,2]
[356651465,1742916643838,-292.90188756,0.00012473,2]
[356651466,1742916643847,-500.0,0.00012473,2]
[356651467,1742916643858,-506.17204549,0.00012473,2]
[356651468,1742916643867,-500.0,0.00012473,2]
[356651469,1742916643876,-500.0,0.00012473,2]
[356651470,1742916643885,-501.49998184,0.00012473,2]
[356651471,1742916643895,-500.0,0.00012473,2]
[356651472,1742916643904,-500.0,0.00012473,2]
[356651473,1742916643914,-500.0,0.00012473,2]
[356651474,1742916643924,-500.0,0.00012473,2]
[356651475,1742916643934,-204.03045044,0.00012483,2]
[356651476,1742916643943,-600.0,0.00012483,2]
[356651477,1742916643953,-500.0,0.00012486,2]
[356651478,1742916643963,-5960.71,0.00012486,2]
[356651479,1742916643972,-500.0,0.00012486,2]
[356651480,1742916643982,-500.0,0.00012486,2]
[356651481,1742916643991,-506.35746834,0.00012486,2]
[356651482,1742916644002,-1165.08,0.00012486,2]
[356651483,1742916644011,-3551.46,0.00012486,2]
[356651484,1742916644020,-304.412424,0.00012486,2]
[356651485,1742916644030,-304.412424,0.00012486,2]
[356651486,1742916644040,-5273.64,0.00012486,2]
[356651487,1742916644049,-500.0,0.00012486,2]
[356651488,1742916644059,-581.48,0.00012486,2]
[356651489,1742916644068,-1589.73,0.00012486,2]
[356651490,1742916644078,-504.88325925,0.00012486,2]
[356651491,1742916644087,-500.0,0.00012486,2]
[356651492,1742916644097,-500.0,0.00012486,2]
[356651493,1742916644107,-500.0,0.00012486,2]
[356651494,1742916644116,-1931.35,0.00012486,2]
[356651495,1742916644125,-500.0,0.00012486,2]
[356651496,1742916644135,-151.0,0.00012486,2]
[356651497,1742916644144,-500.0,0.00012486,2]
[356651498,1742916644154,-151.0,0.00012486,2]
[356651499,1742916644163,-1449.91,0.00012486,2]
[356651500,1742916644173,-151.0,0.00012486,2]
[356651501,1742916644183,-156.401177,0.00012486,2]
[356651502,1742916644193,-968.56,0.00012486,2]
[356651503,1742916644203,-500.0,0.00012486,2]
[356651504,1742916644212,-596.8,0.00012486,2]
[356651505,1742916644222,-1420.26,0.00012486,2]
[356651506,1742916644231,-500.0,0.00012486,2]
[356651507,1742916644241,-151.0,0.00012486,2]
[356651508,1742916644252,-151.0,0.00012486,2]
[356651509,1742916644262,-11853.26,0.00012486,2]
[356651510,1742916644272,-151.0,0.00012486,2]
[356651511,1742916644282,-151.0,0.00012486,2]
[356651512,1742916644292,-151.0,0.00012486,2]
[356651513,1742916644303,-151.0,0.00012486,2]
[356651514,1742916644313,-151.0,0.00012486,2]
[356651515,1742916644323,-151.0,0.00012486,2]
[356651516,1742916644332,-152.31702,0.00012486,2]
[356651517,1742916644341,-561.93,0.00012486,2]
[356651518,1742916644351,-500.0,0.00012486,2]
[356651519,1742916644360,-500.0,0.00012486,2]
[356651520,1742916644370,-3561.25,0.00012486,2]
[356651521,1742916644379,-3564.37,0.00012486,2]
[356651522,1742916644389,-500.0,0.00012486,2]
[356651523,1742916644399,-3198.96,0.00012486,2]
[356651524,1742916644408,-500.0,0.00012487,2]
[356651525,1742916644417,-500.0,0.00012487,2]
[356651526,1742916644427,-509.16,0.00012487,2]
[356651527,1742916644437,-500.0,0.00012487,2]
[356651528,1742916644447,-500.0,0.00012487,2]
[356651529,1742916644456,-500.0,0.00012487,2]
[356651530,1742916644466,-500.0,0.00012487,2]
[356651531,1742916644475,-500.0,0.00012487,2]
[356651532,1742916644485,-500.0,0.00012487,2]
[356651533,1742916644495,-703.67,0.00012487,2]
[356651534,1742916644506,-500.0,0.00012487,2]
[356651535,1742916644515,-500.0,0.00012487,2]
[356651536,1742916644525,-512.08657871,0.00012487,2]
[356651537,1742916644535,-500.0,0.00012487,2]
[356651538,1742916644545,-500.0,0.00012487,2]
[356651539,1742916644555,-500.0,0.00012487,2]
[356651540,1742916644564,-500.0,0.00012487,2]
[356651541,1742916644573,-500.0,0.00012487,2]
[356651542,1742916644583,-507.53543428,0.00012487,2]
[356651543,1742916644593,-500.0,0.00012487,2]
[356651544,1742916644602,-500.0,0.00012487,2]
[356651545,1742916644612,-500.0,0.00012487,2]
[356651546,1742916644622,-500.0,0.00012487,2]
[356651547,1742916644631,-506.45056934,0.00012487,2]
[356651548,1742916644641,-729.04,0.00012487,2]
[356651549,1742916644650,-500.0,0.00012487,2]
[356651550,1742916644660,-500.0,0.00012487,2]
[356651551,1742916644670,-510.03912924,0.00012487,2]
[356651552,1742916644680,-500.0,0.00012487,2]
[356651553,1742916644689,-500.0,0.00012487,2]
[356651554,1742916644699,-500.0,0.00012487,2]
[356651555,1742916644708,-500.0,0.00012487,2]
[356651556,1742916644718,-500.0,0.00012487,2]
[356651557,1742916644727,-1089.64,0.00012487,2]
[356651558,1742916644736,-500.0,0.00012487,2]
[356651559,1742916644746,-553.34,0.00012487,2]
[356651560,1742916644757,-500.0,0.00012487,2]
[356651561,1742916644767,-500.0,0.00012487,2]
[356651562,1742916644776,-500.0,0.00012487,2]
[356651563,1742916644786,-510.76407531,0.00012487,2]
[356651564,1742916644795,-500.0,0.00012487,2]
[356651565,1742916644805,-500.0,0.00012487,2]
[356651566,1742916644818,-500.0,0.00012487,2]
[356651567,1742916644827,-523.32,0.00012487,2]
[356651568,1742916644836,-500.0,0.00012487,2]
[356651569,1742916644846,-500.0,0.00012487,2]
[356651570,1742916644857,-458.88099852,0.00012487,2]
[356651571,1742916644866,-500.0,0.00012487,2]
[356651572,1742916644876,-500.0,0.00012487,2]
[356651573,1742916644887,-256.49299463,0.00012487,2]
[356651574,1742916644897,-500.0,0.00012487,2]
[356651575,1742916644906,-500.0,0.00012487,2]
[356651576,1742916644917,-500.0,0.00012487,2]
[356651577,1742916644926,-500.0,0.00012487,2]
[356651578,1742916644936,-500.0,0.00012487,2]
[356651579,1742916644946,-500.0,0.00012487,2]
[356651580,1742916644955,-489.49266716,0.00012487,2]
[356651581,1742916644965,-521.22,0.00012487,2]
[356651582,1742916644975,-500.0,0.00012487,2]
[356651583,1742916644984,-519.499394,0.00012487,2]
[356651584,1742916644994,-519.499394,0.00012487,2]
[356651585,1742916645003,-519.499394,0.00012487,2]
[356651586,1742916645013,-519.499394,0.00012487,2]
[356651587,1742916645023,-519.499394,0.00012487,2]
[356651588,1742916645032,-500.0,0.00012487,2]
[356651589,1742916645042,-519.499394,0.00012487,2]
[356651590,1742916645052,-519.499394,0.00012487,2]
[356651591,1742916645062,-519.499394,0.00012487,2]
[356651592,1742916645071,-519.499394,0.00012487,2]
[356651593,1742916645081,-519.499394,0.00012487,2]
[356651594,1742916645090,-500.0,0.00012487,2]
[356651595,1742916645100,-513.7776563,0.00012487,2]
[356651596,1742916645112,-500.0,0.00012487,2]
[356651597,1742916645122,-500.0,0.00012487,2]
[356651598,1742916645136,-500.0,0.00012487,2]
[356651599,1742916645146,-500.0,0.00012487,2]
[356651600,1742916645156,-770.41,0.00012487,2]
[356651601,1742916645170,-681.36,0.00012487,2]
[356651602,1742916645186,-500.0,0.00012487,2]
[356651603,1742916645406,-986.19,0.00012487,2]
[356651604,1742916645416,-565.79,0.00012487,2]
[356651605,1742916645426,-648.65,0.00012487,2]
[356651606,1742916645437,-1494.51,0.00012487,2]